[Event "Titled Tuesday Blitz January 10 Early 2023"]
[White "Lamaze, Simon"]
[Black "Movahed, Sina"]
[WhiteFideId "36069264"]
[BlackFideId "42520835"]
[WhiteElo "2363"]
[BlackElo "2340"]
[Result "0-1"]
[Round "02"]
[TimeControl "180+2"]
[Date "2023.01.10"]
[WhiteClock "0:00:17"]
[BlackClock "0:00:43"]

1. e4 {[%clk 0:02:59]}  c5 {[%clk 0:02:59]} 2. Nf3 {[%clk 0:02:58]}  d6 {[%clk 0:03:00]} 3. d4 {[%clk 0:02:59]}  cxd4 {[%clk 0:03:01]} 4. Nxd4 {[%clk 0:03:00]}  Nf6 {[%clk 0:03:01]} 5. Bb5+ {[%clk 0:03:00]}  Nbd7 {[%clk 0:02:59]} 6. O-O {[%clk 0:02:55]}  g6 {[%clk 0:02:58]} 7. Re1 {[%clk 0:02:53]}  Bg7 {[%clk 0:02:58]} 8. c4 {[%clk 0:02:48]}  O-O {[%clk 0:02:58]} 9. Nc3 {[%clk 0:02:48]}  Nc5 {[%clk 0:02:58]} 10. Ba4 {[%clk 0:02:36]}  Bg4 {[%clk 0:02:38]} 11. f3 {[%clk 0:02:34]}  Nxa4 {[%clk 0:02:38]} 12. Nxa4 {[%clk 0:02:32]}  Bd7 {[%clk 0:02:37]} 13. Nc3 {[%clk 0:02:28]}  Rc8 {[%clk 0:02:33]} 14. b3 {[%clk 0:02:26]}  h5 {[%clk 0:02:24]} 15. Be3 {[%clk 0:02:24]}  h4 {[%clk 0:02:24]} 16. h3 {[%clk 0:02:16]}  Nh5 {[%clk 0:02:20]} 17. Qd2 {[%clk 0:02:14]}  Qa5 {[%clk 0:02:16]} 18. Rad1 {[%clk 0:02:09]}  Rfe8 {[%clk 0:02:04]} 19. a4 {[%clk 0:01:53]}  Ng3 {[%clk 0:02:01]} 20. Nd5 {[%clk 0:01:49]}  Qxd2 {[%clk 0:01:59]} 21. Rxd2 {[%clk 0:01:50]}  e6 {[%clk 0:01:55]} 22. Nc3 {[%clk 0:01:40]}  Bf6 {[%clk 0:01:51]} 23. Kf2 {[%clk 0:01:38]}  a6 {[%clk 0:01:49]} 24. Nce2 {[%clk 0:01:22]}  Nxe2 {[%clk 0:01:45]} 25. Nxe2 {[%clk 0:01:23]}  Be7 {[%clk 0:01:26]} 26. a5 {[%clk 0:01:22]}  d5 {[%clk 0:01:19]} 27. cxd5 {[%clk 0:01:08]}  Bb4 {[%clk 0:01:15]} 28. d6 {[%clk 0:00:57]}  Bxa5 {[%clk 0:01:14]} 29. Red1 {[%clk 0:00:55]}  Bxd2 {[%clk 0:01:13]} 30. Rxd2 {[%clk 0:00:56]}  e5 {[%clk 0:01:12]} 31. Bg5 {[%clk 0:00:54]}  Kg7 {[%clk 0:01:12]} 32. Bxh4 {[%clk 0:00:52]}  f6 {[%clk 0:01:13]} 33. Ke1 {[%clk 0:00:37]}  a5 {[%clk 0:01:09]} 34. Bf2 {[%clk 0:00:37]}  b5 {[%clk 0:01:09]} 35. Bb6 {[%clk 0:00:34]}  a4 {[%clk 0:01:09]} 36. bxa4 {[%clk 0:00:34]}  bxa4 {[%clk 0:01:09]} 37. Bc7 {[%clk 0:00:35]}  Ra8 {[%clk 0:01:07]} 38. Nc3 {[%clk 0:00:33]}  a3 {[%clk 0:01:07]} 39. Ra2 {[%clk 0:00:33]}  Ra6 {[%clk 0:01:04]} 40. Kd2 {[%clk 0:00:29]}  Be6 {[%clk 0:00:58]} 41. Ra1 {[%clk 0:00:29]}  Rea8 {[%clk 0:00:57]} 42. Kd3 {[%clk 0:00:19]}  Kf7 {[%clk 0:00:56]} 43. h4 {[%clk 0:00:18]}  Ke8 {[%clk 0:00:53]} 44. g3 {[%clk 0:00:19]}  Kd7 {[%clk 0:00:53]} 45. f4 {[%clk 0:00:19]}  a2 {[%clk 0:00:51]} 46. h5 {[%clk 0:00:19]}  gxh5 {[%clk 0:00:51]} 47. f5 {[%clk 0:00:19]}  Bb3 {[%clk 0:00:45]} 48. Ne2 {[%clk 0:00:18]}  Ra3 {[%clk 0:00:44]} 49. Nc1 {[%clk 0:00:17]}  Bf7+ {[%clk 0:00:43]} 50. Kc2 {[%clk 0:00:17]}  Rxg3 {[%clk 0:00:44]} 51. Nd3 {[%clk 0:00:16]}  Rg2+ {[%clk 0:00:43]} 52. Kc3 {[%clk 0:00:17]}  Ra3+ {[%clk 0:00:43]} 0-1


[Site "https://www.chess.com"]

[Event "Titled Tuesday Blitz January 10 Early 2023"]
[White "Renjith, Sravan"]
[Black "Kukhmazov, Arsen"]
[WhiteFideId "4306783"]
[BlackFideId "24108260"]
[WhiteElo "2172"]
[BlackElo "2512"]
[Result "0-1"]
[Round "02"]
[TimeControl "180+2"]
[Date "2023.01.10"]
[WhiteClock "0:00:02"]
[BlackClock "0:00:34"]

1. d4 {[%clk 0:03:00]}  d5 {[%clk 0:02:52]} 2. Bf4 {[%clk 0:02:58]}  Nf6 {[%clk 0:02:51]} 3. e3 {[%clk 0:02:58]}  c5 {[%clk 0:02:52]} 4. c3 {[%clk 0:02:58]}  Nc6 {[%clk 0:02:52]} 5. Nf3 {[%clk 0:02:58]}  Qb6 {[%clk 0:02:50]} 6. Qc1 {[%clk 0:02:33]}  Bf5 {[%clk 0:02:48]} 7. Be2 {[%clk 0:02:31]}  e6 {[%clk 0:02:49]} 8. O-O {[%clk 0:02:31]}  h6 {[%clk 0:02:48]} 9. Nbd2 {[%clk 0:02:30]}  Rc8 {[%clk 0:02:49]} 10. Ne5 {[%clk 0:02:24]}  cxd4 {[%clk 0:02:11]} 11. Nxc6 {[%clk 0:02:19]}  dxe3 {[%clk 0:02:05]} 12. Bxe3 {[%clk 0:01:47]}  Qxc6 {[%clk 0:02:05]} 13. Nf3 {[%clk 0:01:47]}  Bc5 {[%clk 0:01:46]} 14. Nd4 {[%clk 0:01:29]}  Bxd4 {[%clk 0:01:46]} 15. Bxd4 {[%clk 0:01:28]}  a6 {[%clk 0:01:36]} 16. Qf4 {[%clk 0:01:20]}  Kf8 {[%clk 0:01:35]} 17. g4 {[%clk 0:01:16]}  Bg6 {[%clk 0:01:35]} 18. Bxf6 {[%clk 0:00:58]}  gxf6 {[%clk 0:01:36]} 19. Qxf6 {[%clk 0:00:59]}  Rg8 {[%clk 0:01:33]} 20. h4 {[%clk 0:00:46]}  h5 {[%clk 0:01:24]} 21. g5 {[%clk 0:00:37]}  Qa4 {[%clk 0:01:24]} 22. f4 {[%clk 0:00:29]}  Qc2 {[%clk 0:01:17]} 23. Rae1 {[%clk 0:00:11]}  Be4 {[%clk 0:00:56]} 24. f5 {[%clk 0:00:05]}  exf5 {[%clk 0:00:56]} 25. Rf2 {[%clk 0:00:04]}  Qd2 {[%clk 0:00:51]} 26. Ref1 {[%clk 0:00:02]}  Qe3 {[%clk 0:00:51]} 27. Qd6+ {[%clk 0:00:02]}  Ke8 {[%clk 0:00:45]} 28. Bxh5 {[%clk 0:00:02]}  Rc6 {[%clk 0:00:34]} 29. Qb8+ {[%clk 0:00:01]}  Kd7 {[%clk 0:00:35]} 30. Qxb7+ {[%clk 0:00:02]}  Rc7 {[%clk 0:00:35]} 31. Qb4 {[%clk 0:00:02]}  Qg3+ {[%clk 0:00:34]} 0-1


[Site "https://www.chess.com"]

[Event "Titled Tuesday Blitz January 10 Early 2023"]
[White "Iskusnyh, Sergei"]
[Black "Baskakov, Egor"]
[WhiteFideId "4120027"]
[BlackFideId "24197866"]
[WhiteElo "2440"]
[BlackElo "2215"]
[Result "0-1"]
[Round "02"]
[TimeControl "180+2"]
[Date "2023.01.10"]
[WhiteClock "0:00:11"]
[BlackClock "0:00:17"]

1. d4 {[%clk 0:03:00]}  Nf6 {[%clk 0:02:59]} 2. c4 {[%clk 0:02:59]}  e6 {[%clk 0:02:59]} 3. g3 {[%clk 0:02:58]}  d5 {[%clk 0:02:59]} 4. Nf3 {[%clk 0:02:56]}  Be7 {[%clk 0:02:59]} 5. Bg2 {[%clk 0:02:56]}  O-O {[%clk 0:02:59]} 6. O-O {[%clk 0:02:56]}  Ne4 {[%clk 0:03:00]} 7. Qc2 {[%clk 0:02:41]}  f5 {[%clk 0:02:59]} 8. Nbd2 {[%clk 0:02:36]}  c6 {[%clk 0:02:58]} 9. Ne5 {[%clk 0:02:35]}  Bd7 {[%clk 0:02:58]} 10. Ndf3 {[%clk 0:02:33]}  Be8 {[%clk 0:02:58]} 11. Nd3 {[%clk 0:02:32]}  Nd7 {[%clk 0:02:58]} 12. b3 {[%clk 0:02:29]}  g5 {[%clk 0:02:57]} 13. Bb2 {[%clk 0:02:23]}  Rc8 {[%clk 0:02:53]} 14. Rad1 {[%clk 0:02:20]}  Bh5 {[%clk 0:02:52]} 15. Nfe5 {[%clk 0:02:12]}  Nxe5 {[%clk 0:02:52]} 16. Nxe5 {[%clk 0:02:12]}  Nf6 {[%clk 0:02:52]} 17. f3 {[%clk 0:01:55]}  Nd7 {[%clk 0:02:52]} 18. Nd3 {[%clk 0:01:55]}  f4 {[%clk 0:02:45]} 19. Bh3 {[%clk 0:01:46]}  Rf6 {[%clk 0:02:45]} 20. gxf4 {[%clk 0:01:41]}  gxf4 {[%clk 0:02:46]} 21. Kh1 {[%clk 0:01:41]}  Bd6 {[%clk 0:02:36]} 22. Rg1+ {[%clk 0:01:39]}  Kh8 {[%clk 0:02:30]} 23. Nc5 {[%clk 0:01:33]}  Qe7 {[%clk 0:01:49]} 24. Nxb7 {[%clk 0:01:28]}  Bb8 {[%clk 0:01:47]} 25. cxd5 {[%clk 0:01:26]}  exd5 {[%clk 0:01:48]} 26. Nc5 {[%clk 0:01:25]}  Bg6 {[%clk 0:01:16]} 27. Qd2 {[%clk 0:01:16]}  Bf5 {[%clk 0:01:14]} 28. Bxf5 {[%clk 0:01:07]}  Rxf5 {[%clk 0:01:15]} 29. Nxd7 {[%clk 0:00:56]}  Qxd7 {[%clk 0:01:14]} 30. Rg4 {[%clk 0:00:57]}  Re8 {[%clk 0:01:03]} 31. Rdg1 {[%clk 0:00:56]}  Rf7 {[%clk 0:01:00]} 32. Ba3 {[%clk 0:00:47]}  Bd6 {[%clk 0:00:46]} 33. Bxd6 {[%clk 0:00:43]}  Qxd6 {[%clk 0:00:47]} 34. Qd3 {[%clk 0:00:41]}  Qe6 {[%clk 0:00:44]} 35. R1g2 {[%clk 0:00:38]}  Qf6 {[%clk 0:00:36]} 36. Rg5 {[%clk 0:00:37]}  Rfe7 {[%clk 0:00:36]} 37. R5g4 {[%clk 0:00:33]}  Re3 {[%clk 0:00:32]} 38. Qc2 {[%clk 0:00:32]}  Qxd4 {[%clk 0:00:24]} 39. Qxc6 {[%clk 0:00:30]}  Qa1+ {[%clk 0:00:16]} 40. Rg1 {[%clk 0:00:29]}  Qe5 {[%clk 0:00:16]} 41. Rg7 {[%clk 0:00:17]}  Qxg7 {[%clk 0:00:13]} 42. Rxg7 {[%clk 0:00:17]}  Kxg7 {[%clk 0:00:14]} 43. Qc7+ {[%clk 0:00:17]}  Kg8 {[%clk 0:00:14]} 44. Qxf4 {[%clk 0:00:16]}  Rxe2 {[%clk 0:00:14]} 45. Qg5+ {[%clk 0:00:17]}  Kf7 {[%clk 0:00:15]} 46. Qxd5+ {[%clk 0:00:17]}  Kf6 {[%clk 0:00:15]} 47. Qd4+ {[%clk 0:00:16]}  Kf5 {[%clk 0:00:15]} 48. Qg4+ {[%clk 0:00:16]}  Kf6 {[%clk 0:00:16]} 49. Qf4+ {[%clk 0:00:16]}  Kg7 {[%clk 0:00:16]} 50. Qg5+ {[%clk 0:00:17]}  Kf7 {[%clk 0:00:17]} 51. Qf5+ {[%clk 0:00:17]}  Kg7 {[%clk 0:00:17]} 52. Qd7+ {[%clk 0:00:14]}  R8e7 {[%clk 0:00:17]} 53. Qd4+ {[%clk 0:00:14]}  Kf7 {[%clk 0:00:17]} 54. h4 {[%clk 0:00:14]}  Rxa2 {[%clk 0:00:17]} 55. Qf4+ {[%clk 0:00:14]}  Ke8 {[%clk 0:00:16]} 56. Qb8+ {[%clk 0:00:13]}  Kf7 {[%clk 0:00:17]} 57. Qf4+ {[%clk 0:00:13]}  Kg7 {[%clk 0:00:17]} 58. Qg5+ {[%clk 0:00:13]}  Kf7 {[%clk 0:00:17]} 59. Qf5+ {[%clk 0:00:13]}  Ke8 {[%clk 0:00:16]} 60. Qc8+ {[%clk 0:00:13]}  Kf7 {[%clk 0:00:17]} 61. Qf5+ {[%clk 0:00:13]}  Kg8 {[%clk 0:00:17]} 62. Qg5+ {[%clk 0:00:11]}  Kf8 {[%clk 0:00:17]} 0-1


[Site "https://www.chess.com"]

[Event "Titled Tuesday Blitz January 10 Early 2023"]
[White "Golubev, Mikhail"]
[Black "Svane, Frederik"]
[WhiteFideId "14100983"]
[BlackFideId "12923044"]
[WhiteElo "2461"]
[BlackElo "2600"]
[Result "0-1"]
[Round "02"]
[TimeControl "180+2"]
[Date "2023.01.10"]
[WhiteClock "0:00:03"]
[BlackClock "0:00:34"]

1. e4 {[%clk 0:03:00]}  c5 {[%clk 0:02:59]} 2. Nf3 {[%clk 0:03:00]}  e6 {[%clk 0:02:59]} 3. d4 {[%clk 0:03:00]}  cxd4 {[%clk 0:02:59]} 4. Nxd4 {[%clk 0:03:00]}  Nc6 {[%clk 0:03:00]} 5. Nc3 {[%clk 0:03:00]}  a6 {[%clk 0:03:00]} 6. Be3 {[%clk 0:02:59]}  Nf6 {[%clk 0:03:00]} 7. Bd3 {[%clk 0:02:58]}  d6 {[%clk 0:02:53]} 8. f4 {[%clk 0:02:50]}  Be7 {[%clk 0:02:46]} 9. Qf3 {[%clk 0:02:50]}  Bd7 {[%clk 0:02:44]} 10. O-O-O {[%clk 0:02:46]}  Rc8 {[%clk 0:02:45]} 11. g4 {[%clk 0:02:11]}  Nxd4 {[%clk 0:02:36]} 12. Bxd4 {[%clk 0:02:12]}  e5 {[%clk 0:02:36]} 13. fxe5 {[%clk 0:02:12]}  dxe5 {[%clk 0:02:23]} 14. Bxe5 {[%clk 0:02:11]}  Bxg4 {[%clk 0:02:24]} 15. Bb5+ {[%clk 0:02:10]}  Bd7 {[%clk 0:01:45]} 16. Bxd7+ {[%clk 0:01:42]}  Nxd7 {[%clk 0:01:46]} 17. Bxg7 {[%clk 0:01:30]}  Rg8 {[%clk 0:01:46]} 18. Bd4 {[%clk 0:01:28]}  Bg5+ {[%clk 0:01:16]} 19. Kb1 {[%clk 0:01:27]}  Qe7 {[%clk 0:01:17]} 20. Rhg1 {[%clk 0:01:13]}  Rg6 {[%clk 0:01:17]} 21. Nd5 {[%clk 0:01:02]}  Qe6 {[%clk 0:01:17]} 22. h4 {[%clk 0:00:45]}  Bh6 {[%clk 0:01:17]} 23. h5 {[%clk 0:00:40]}  Rxg1 {[%clk 0:01:17]} 24. Rxg1 {[%clk 0:00:41]}  Rc4 {[%clk 0:01:18]} 25. Qd3 {[%clk 0:00:30]}  Rc6 {[%clk 0:01:18]} 26. Rg8+ {[%clk 0:00:27]}  Bf8 {[%clk 0:01:18]} 27. a3 {[%clk 0:00:23]}  f5 {[%clk 0:00:56]} 28. Nc3 {[%clk 0:00:13]}  Qxg8 {[%clk 0:00:55]} 29. exf5 {[%clk 0:00:13]}  Qf7 {[%clk 0:00:52]} 30. Ne4 {[%clk 0:00:11]}  Kd8 {[%clk 0:00:52]} 31. Ng5 {[%clk 0:00:11]}  Qc4 {[%clk 0:00:45]} 32. Ne6+ {[%clk 0:00:10]}  Kc8 {[%clk 0:00:45]} 33. Qd2 {[%clk 0:00:09]}  Qd5 {[%clk 0:00:44]} 34. Nxf8 {[%clk 0:00:05]}  Nxf8 {[%clk 0:00:43]} 35. Qe3 {[%clk 0:00:04]}  Nd7 {[%clk 0:00:37]} 36. f6 {[%clk 0:00:03]}  Nxf6 {[%clk 0:00:34]} 0-1


[Site "https://www.chess.com"]

[Event "Titled Tuesday Blitz January 10 Early 2023"]
[White "Ohanyan, Emin"]
[Black "Aaditya Dhingra"]
[WhiteFideId "13312022"]
[BlackFideId "25678191"]
[WhiteElo "2444"]
[BlackElo "2027"]
[Result "1-0"]
[Round "02"]
[TimeControl "180+2"]
[Date "2023.01.10"]
[WhiteClock "0:00:08"]
[BlackClock "0:00:36"]

1. e4 {[%clk 0:03:00]}  c6 {[%clk 0:02:55]} 2. d4 {[%clk 0:03:00]}  d5 {[%clk 0:02:54]} 3. Nc3 {[%clk 0:03:01]}  dxe4 {[%clk 0:02:54]} 4. Nxe4 {[%clk 0:03:01]}  Nf6 {[%clk 0:02:54]} 5. Nxf6+ {[%clk 0:03:02]}  exf6 {[%clk 0:02:55]} 6. Bd3 {[%clk 0:03:03]}  Bd6 {[%clk 0:02:54]} 7. Qh5 {[%clk 0:03:03]}  g6 {[%clk 0:02:52]} 8. Qh6 {[%clk 0:03:01]}  Bf8 {[%clk 0:02:50]} 9. Qe3+ {[%clk 0:02:58]}  Qe7 {[%clk 0:02:47]} 10. Ne2 {[%clk 0:02:58]}  Bg7 {[%clk 0:02:46]} 11. Qxe7+ {[%clk 0:02:54]}  Kxe7 {[%clk 0:02:45]} 12. h4 {[%clk 0:02:55]}  h5 {[%clk 0:02:41]} 13. Be3 {[%clk 0:02:53]}  Na6 {[%clk 0:02:37]} 14. Bxa6 {[%clk 0:02:49]}  bxa6 {[%clk 0:02:36]} 15. O-O-O {[%clk 0:02:49]}  Bg4 {[%clk 0:02:34]} 16. Rhe1 {[%clk 0:02:47]}  Rhe8 {[%clk 0:02:29]} 17. f3 {[%clk 0:02:37]}  Kd7 {[%clk 0:02:22]} 18. Nf4 {[%clk 0:02:34]}  Bh6 {[%clk 0:02:11]} 19. Bd2 {[%clk 0:02:23]}  Bf5 {[%clk 0:02:05]} 20. d5 {[%clk 0:02:00]}  c5 {[%clk 0:02:01]} 21. Ne2 {[%clk 0:01:50]}  Bxd2+ {[%clk 0:01:55]} 22. Kxd2 {[%clk 0:01:51]}  Rab8 {[%clk 0:01:55]} 23. b3 {[%clk 0:01:49]}  g5 {[%clk 0:01:48]} 24. c4 {[%clk 0:01:15]}  gxh4 {[%clk 0:01:44]} 25. Nf4 {[%clk 0:01:15]}  Rxe1 {[%clk 0:01:40]} 26. Rxe1 {[%clk 0:01:16]}  Rg8 {[%clk 0:01:40]} 27. Rh1 {[%clk 0:01:02]}  h3 {[%clk 0:01:39]} 28. gxh3 {[%clk 0:01:03]}  h4 {[%clk 0:01:36]} 29. Ke3 {[%clk 0:01:02]}  Rg3 {[%clk 0:01:32]} 30. Kf2 {[%clk 0:01:01]}  Kd6 {[%clk 0:01:30]} 31. Re1 {[%clk 0:00:42]}  Bd7 {[%clk 0:01:23]} 32. Nh5 {[%clk 0:00:29]}  Rxh3 {[%clk 0:01:15]} 33. Kg2 {[%clk 0:00:28]}  a5 {[%clk 0:01:10]} 34. a4 {[%clk 0:00:16]}  a6 {[%clk 0:01:09]} 35. Re2 {[%clk 0:00:16]}  Bf5 {[%clk 0:00:57]} 36. Re8 {[%clk 0:00:15]}  Bg4 {[%clk 0:00:50]} 37. fxg4 {[%clk 0:00:10]}  Rxb3 {[%clk 0:00:50]} 38. Nxf6 {[%clk 0:00:11]}  Rb4 {[%clk 0:00:47]} 39. Ra8 {[%clk 0:00:10]}  Rxc4 {[%clk 0:00:45]} 40. Rxa6+ {[%clk 0:00:10]}  Ke5 {[%clk 0:00:45]} 41. g5 {[%clk 0:00:10]}  Rxa4 {[%clk 0:00:44]} 42. d6 {[%clk 0:00:10]}  Rd4 {[%clk 0:00:43]} 43. d7 {[%clk 0:00:10]}  Kf5 {[%clk 0:00:42]} 44. Ra8 {[%clk 0:00:06]}  Kxg5 {[%clk 0:00:42]} 45. Nh7+ {[%clk 0:00:06]}  Kg4 {[%clk 0:00:37]} 46. d8=Q {[%clk 0:00:06]}  h3+ {[%clk 0:00:37]} 47. Kf2 {[%clk 0:00:05]}  Rxd8 {[%clk 0:00:38]} 48. Rxd8 {[%clk 0:00:06]}  a4 {[%clk 0:00:36]} 49. Ra8 {[%clk 0:00:06]}  c4 {[%clk 0:00:35]} 50. Rxa4 {[%clk 0:00:06]}  h2 {[%clk 0:00:35]} 51. Rxc4+ {[%clk 0:00:07]}  Kh3 {[%clk 0:00:36]} 52. Ng5# {[%clk 0:00:08]} 1-0


[Site "https://www.chess.com"]

[Event "Titled Tuesday Blitz January 10 Early 2023"]
[White "Czernek, Tymon"]
[Black "Vakhlamov, Igor L."]
[WhiteFideId "1199510"]
[BlackFideId "24126748"]
[WhiteElo "2314"]
[BlackElo "2413"]
[Result "0-1"]
[Round "02"]
[TimeControl "180+2"]
[Date "2023.01.10"]
[WhiteClock "0:00:06"]
[BlackClock "0:00:17"]

1. e4 {[%clk 0:03:00]}  c5 {[%clk 0:02:59]} 2. Nf3 {[%clk 0:02:59]}  g6 {[%clk 0:02:59]} 3. d4 {[%clk 0:02:54]}  cxd4 {[%clk 0:03:00]} 4. Nxd4 {[%clk 0:02:54]}  Nc6 {[%clk 0:03:00]} 5. c4 {[%clk 0:02:50]}  Nf6 {[%clk 0:03:00]} 6. Nc3 {[%clk 0:02:48]}  d6 {[%clk 0:03:01]} 7. Be2 {[%clk 0:02:46]}  Nxd4 {[%clk 0:03:01]} 8. Qxd4 {[%clk 0:02:46]}  Bg7 {[%clk 0:03:02]} 9. O-O {[%clk 0:02:43]}  O-O {[%clk 0:03:02]} 10. Qd1 {[%clk 0:02:41]}  Be6 {[%clk 0:03:02]} 11. Be3 {[%clk 0:02:28]}  Qa5 {[%clk 0:03:02]} 12. Rc1 {[%clk 0:02:25]}  Rfc8 {[%clk 0:03:01]} 13. b3 {[%clk 0:02:25]}  a6 {[%clk 0:03:01]} 14. f4 {[%clk 0:02:17]}  b5 {[%clk 0:02:54]} 15. e5 {[%clk 0:01:51]}  dxe5 {[%clk 0:02:41]} 16. fxe5 {[%clk 0:01:52]}  Nd7 {[%clk 0:02:42]} 17. Nd5 {[%clk 0:01:52]}  Bxd5 {[%clk 0:02:41]} 18. Qxd5 {[%clk 0:01:53]}  Nxe5 {[%clk 0:02:35]} 19. cxb5 {[%clk 0:01:52]}  axb5 {[%clk 0:02:28]} 20. Bxb5 {[%clk 0:01:25]}  Qxa2 {[%clk 0:02:16]} 21. Bc4 {[%clk 0:01:16]}  e6 {[%clk 0:02:12]} 22. Qb7 {[%clk 0:01:13]}  Rab8 {[%clk 0:02:10]} 23. Qe7 {[%clk 0:01:13]}  Re8 {[%clk 0:01:57]} 24. Qc7 {[%clk 0:01:11]}  Rbc8 {[%clk 0:01:58]} 25. Qb7 {[%clk 0:01:11]}  Qa8 {[%clk 0:01:58]} 26. Qxa8 {[%clk 0:00:56]}  Rxa8 {[%clk 0:01:59]} 27. Bb5 {[%clk 0:00:45]}  Reb8 {[%clk 0:01:56]} 28. Ba4 {[%clk 0:00:45]}  Ng4 {[%clk 0:01:45]} 29. Bc5 {[%clk 0:00:36]}  Rc8 {[%clk 0:01:45]} 30. Rfd1 {[%clk 0:00:35]}  Nf6 {[%clk 0:01:36]} 31. Bd4 {[%clk 0:00:18]}  Nd5 {[%clk 0:01:00]} 32. Bxg7 {[%clk 0:00:16]}  Kxg7 {[%clk 0:01:01]} 33. Bc6 {[%clk 0:00:16]}  Rab8 {[%clk 0:01:01]} 34. Bxd5 {[%clk 0:00:16]}  Rxc1 {[%clk 0:01:02]} 35. Rxc1 {[%clk 0:00:16]}  exd5 {[%clk 0:01:03]} 36. Rc3 {[%clk 0:00:16]}  Kf6 {[%clk 0:01:03]} 37. Kf2 {[%clk 0:00:16]}  Ke5 {[%clk 0:01:03]} 38. Rc7 {[%clk 0:00:16]}  Rxb3 {[%clk 0:00:59]} 39. Rxf7 {[%clk 0:00:16]}  h5 {[%clk 0:00:58]} 40. h4 {[%clk 0:00:15]}  Rb2+ {[%clk 0:00:57]} 41. Kf3 {[%clk 0:00:15]}  Rb3+ {[%clk 0:00:55]} 42. Kf2 {[%clk 0:00:16]}  d4 {[%clk 0:00:55]} 43. Re7+ {[%clk 0:00:16]}  Kf5 {[%clk 0:00:55]} 44. Rd7 {[%clk 0:00:17]}  Ke4 {[%clk 0:00:54]} 45. Re7+ {[%clk 0:00:17]}  Kd5 {[%clk 0:00:51]} 46. Rd7+ {[%clk 0:00:17]}  Ke5 {[%clk 0:00:52]} 47. Re7+ {[%clk 0:00:17]}  Kd5 {[%clk 0:00:37]} 48. Rd7+ {[%clk 0:00:17]}  Kc4 {[%clk 0:00:36]} 49. Rc7+ {[%clk 0:00:18]}  Kd3 {[%clk 0:00:36]} 50. Rc6 {[%clk 0:00:17]}  Rb2+ {[%clk 0:00:36]} 51. Kf3 {[%clk 0:00:17]}  Kd2 {[%clk 0:00:31]} 52. Rxg6 {[%clk 0:00:18]}  Rb3+ {[%clk 0:00:30]} 53. Kf2 {[%clk 0:00:18]}  d3 {[%clk 0:00:29]} 54. g4 {[%clk 0:00:17]}  hxg4 {[%clk 0:00:21]} 55. Rxg4 {[%clk 0:00:18]}  Kc3 {[%clk 0:00:20]} 56. Rg8 {[%clk 0:00:10]}  Rb4 {[%clk 0:00:19]} 57. Rc8+ {[%clk 0:00:09]}  Kd2 {[%clk 0:00:19]} 58. h5 {[%clk 0:00:09]}  Rh4 {[%clk 0:00:20]} 59. Kg3 {[%clk 0:00:10]}  Rxh5 {[%clk 0:00:19]} 60. Rd8 {[%clk 0:00:10]}  Ke2 {[%clk 0:00:18]} 61. Re8+ {[%clk 0:00:09]}  Kd1 {[%clk 0:00:17]} 62. Kf3 {[%clk 0:00:09]}  d2 {[%clk 0:00:18]} 63. Ke3 {[%clk 0:00:07]}  Rh3+ {[%clk 0:00:17]} 64. Kf2 {[%clk 0:00:08]}  Kc2 {[%clk 0:00:17]} 65. Rc8+ {[%clk 0:00:06]}  Rc3 {[%clk 0:00:17]} 0-1


[Site "https://www.chess.com"]

[Event "Titled Tuesday Blitz January 10 Early 2023"]
[White "Kosakowski, Jakub"]
[Black "Melian, Juan Sebastian"]
[WhiteFideId "1185080"]
[BlackFideId "3706575"]
[WhiteElo "2485"]
[BlackElo "2293"]
[Result "1/2-1/2"]
[Round "02"]
[TimeControl "180+2"]
[Date "2023.01.10"]
[WhiteClock "0:00:16"]
[BlackClock "0:00:05"]

1. e4 {[%clk 0:02:57]}  c5 {[%clk 0:02:57]} 2. Nf3 {[%clk 0:02:56]}  e6 {[%clk 0:02:56]} 3. d4 {[%clk 0:02:56]}  cxd4 {[%clk 0:02:57]} 4. Nxd4 {[%clk 0:02:56]}  a6 {[%clk 0:02:57]} 5. c4 {[%clk 0:02:55]}  Nf6 {[%clk 0:02:56]} 6. Nc3 {[%clk 0:02:55]}  Bb4 {[%clk 0:02:56]} 7. Qd3 {[%clk 0:02:55]}  Qc7 {[%clk 0:02:55]} 8. a3 {[%clk 0:02:46]}  Be7 {[%clk 0:02:53]} 9. Be2 {[%clk 0:02:45]}  O-O {[%clk 0:02:52]} 10. O-O {[%clk 0:02:44]}  Rd8 {[%clk 0:02:51]} 11. f4 {[%clk 0:02:44]}  Nc6 {[%clk 0:02:26]} 12. Be3 {[%clk 0:02:36]}  d6 {[%clk 0:01:57]} 13. b4 {[%clk 0:02:35]}  Nxd4 {[%clk 0:01:45]} 14. Bxd4 {[%clk 0:02:35]}  e5 {[%clk 0:01:45]} 15. Be3 {[%clk 0:02:33]}  exf4 {[%clk 0:01:38]} 16. Bxf4 {[%clk 0:02:33]}  Be6 {[%clk 0:01:32]} 17. Rac1 {[%clk 0:02:28]}  Rac8 {[%clk 0:01:30]} 18. Nd5 {[%clk 0:02:28]}  Bxd5 {[%clk 0:01:25]} 19. exd5 {[%clk 0:02:29]}  Qd7 {[%clk 0:01:15]} 20. Rfe1 {[%clk 0:02:21]}  Re8 {[%clk 0:01:14]} 21. Bf3 {[%clk 0:02:08]}  b5 {[%clk 0:01:05]} 22. c5 {[%clk 0:01:53]}  dxc5 {[%clk 0:01:05]} 23. Rxe7 {[%clk 0:01:53]}  Qxe7 {[%clk 0:00:22]} 24. d6 {[%clk 0:01:48]}  c4 {[%clk 0:00:23]} 25. Qd4 {[%clk 0:01:44]}  Qd7 {[%clk 0:00:18]} 26. h3 {[%clk 0:01:44]}  Re6 {[%clk 0:00:15]} 27. a4 {[%clk 0:01:42]}  Rce8 {[%clk 0:00:15]} 28. axb5 {[%clk 0:01:38]}  axb5 {[%clk 0:00:16]} 29. Kh2 {[%clk 0:01:37]}  Rd8 {[%clk 0:00:15]} 30. Ra1 {[%clk 0:01:35]}  h6 {[%clk 0:00:13]} 31. Ra7 {[%clk 0:01:35]}  Qe8 {[%clk 0:00:12]} 32. Qc5 {[%clk 0:01:27]}  Ne4 {[%clk 0:00:10]} 33. Qh5 {[%clk 0:01:05]}  Nxd6 {[%clk 0:00:08]} 34. Bd5 {[%clk 0:01:06]}  Rf6 {[%clk 0:00:08]} 35. Qg4 {[%clk 0:00:50]}  Nf5 {[%clk 0:00:05]} 36. Bf3 {[%clk 0:00:49]}  Ne3 {[%clk 0:00:05]} 37. Qh4 {[%clk 0:00:48]}  Nf5 {[%clk 0:00:05]} 38. Qg4 {[%clk 0:00:48]}  Ne3 {[%clk 0:00:06]} 39. Qh4 {[%clk 0:00:49]}  Nf5 {[%clk 0:00:06]} 40. Qf2 {[%clk 0:00:49]}  c3 {[%clk 0:00:06]} 41. Rc7 {[%clk 0:00:48]}  Nd4 {[%clk 0:00:07]} 42. Bh5 {[%clk 0:00:34]}  g6 {[%clk 0:00:05]} 43. Bg4 {[%clk 0:00:32]}  Ne6 {[%clk 0:00:05]} 44. Bxe6 {[%clk 0:00:31]}  Qxe6 {[%clk 0:00:06]} 45. Rxc3 {[%clk 0:00:31]}  Kh7 {[%clk 0:00:05]} 46. Rf3 {[%clk 0:00:31]}  Rd5 {[%clk 0:00:05]} 47. Bg3 {[%clk 0:00:28]}  Rxf3 {[%clk 0:00:06]} 48. Qxf3 {[%clk 0:00:28]}  Rf5 {[%clk 0:00:07]} 49. Qb7 {[%clk 0:00:29]}  Qc4 {[%clk 0:00:07]} 50. Qe7 {[%clk 0:00:28]}  h5 {[%clk 0:00:08]} 51. h4 {[%clk 0:00:25]}  Qe6 {[%clk 0:00:08]} 52. Qf8 {[%clk 0:00:24]}  Qe4 {[%clk 0:00:05]} 53. Qd6 {[%clk 0:00:22]}  Qe6 {[%clk 0:00:05]} 54. Qf8 {[%clk 0:00:22]}  Qf6 {[%clk 0:00:05]} 55. Qe8 {[%clk 0:00:18]}  Kg7 {[%clk 0:00:05]} 56. Qd7 {[%clk 0:00:17]}  Qe6 {[%clk 0:00:04]} 57. Qc7 {[%clk 0:00:16]}  Kh7 {[%clk 0:00:03]} 58. Qc3 {[%clk 0:00:16]}  Rd5 {[%clk 0:00:03]} 59. Qf3 {[%clk 0:00:16]}  Rf5 {[%clk 0:00:04]} 60. Qb7 {[%clk 0:00:17]}  Qc4 {[%clk 0:00:04]} 61. Qd7 {[%clk 0:00:16]}  Qd5 {[%clk 0:00:05]} 62. Qe7 {[%clk 0:00:16]}  Qe6 {[%clk 0:00:05]} 63. Qf8 {[%clk 0:00:16]} 1/2-1/2


[Site "https://www.chess.com"]